fUST/lending_fUST_20250828
["ID","MTS","AMOUNT","RATE_DAILY","PERIOD"]
[381857240,1756372240216,-480.0,0.00019452,2]
[381857241,1756372240226,-480.0,0.00019452,2]
[381857243,1756372240236,-480.0,0.00019452,2]
[381857246,1756372240246,-661.33,0.00019452,2]
[381857248,1756372240256,-480.0,0.00019452,2]
[381857250,1756372240265,-480.0,0.00019452,2]
[381857251,1756372240276,-480.0,0.00019452,2]
[381857253,1756372240286,-480.0,0.00019452,2]
[381857255,1756372240295,-480.0,0.00019452,2]
[381857257,1756372240303,-855.23,0.00019452,2]
[381857259,1756372240313,-480.0,0.00019452,2]
[381857261,1756372240322,-480.0,0.00019452,2]
[381857263,1756372240332,-480.0,0.00019452,2]
[381857265,1756372240341,-480.0,0.00019452,2]
[381857267,1756372240350,-480.0,0.00019452,2]
[381857269,1756372240359,-480.0,0.00019452,2]
[381857271,1756372240368,-480.0,0.00019452,2]
[381857273,1756372240377,-480.0,0.00019452,2]
[381857275,1756372240386,-480.0,0.00019452,2]
[381857277,1756372240395,-480.0,0.00019452,2]
[381857279,1756372240405,-480.0,0.00019452,2]
[381857281,1756372240414,-480.0,0.00019452,2]
[381857283,1756372240423,-480.0,0.00019452,2]
[381857285,1756372240432,-480.0,0.00019452,2]
[381857287,1756372240441,-480.0,0.00019452,2]
[381857289,1756372240451,-480.0,0.00019452,2]
[381857291,1756372240460,-480.0,0.00019452,2]
[381857293,1756372240469,-480.0,0.00019452,2]
[381857295,1756372240478,-683.36,0.00019452,2]
[381857297,1756372240487,-480.0,0.00019452,2]
[381857299,1756372240496,-480.0,0.00019452,2]
[381857301,1756372240506,-480.0,0.00019452,2]
[381857303,1756372240515,-480.0,0.00019452,2]
[381857305,1756372240524,-1077.6,0.00019452,2]
[381857307,1756372240534,-480.0,0.00019452,2]
[381857309,1756372240543,-480.0,0.00019452,2]
[381857311,1756372240552,-480.0,0.00019452,2]
[381857313,1756372240561,-480.0,0.00019452,2]
[381857315,1756372240570,-528.72348372,0.00019452,2]
[381857317,1756372240579,-480.0,0.00019452,2]
[381857319,1756372240588,-600.04,0.00019452,2]
[381857321,1756372240598,-480.0,0.00019452,2]
[381857322,1756372240607,-480.0,0.00019452,2]
[381857323,1756372240616,-480.0,0.00019452,2]
[381857324,1756372240625,-480.0,0.00019452,2]
[381857325,1756372240634,-480.0,0.00019452,2]
[381857326,1756372240643,-480.0,0.00019452,2]
[381857327,1756372240652,-480.0,0.00019452,2]
[381857328,1756372240661,-480.0,0.00019452,2]
[381857329,1756372240674,-480.0,0.00019452,2]
[381857330,1756372240683,-480.0,0.00019452,2]
[381857331,1756372240692,-611.93,0.00019452,2]
[381857332,1756372240702,-480.0,0.00019452,2]
[381857333,1756372240711,-480.0,0.00019452,2]
[381857334,1756372240721,-480.0,0.00019452,2]
[381857335,1756372240730,-480.0,0.00019452,2]
[381857337,1756372240742,-480.0,0.00019452,2]
[381857339,1756372240751,-480.0,0.00019452,2]
[381857341,1756372240760,-537.35,0.00019452,2]
[381857343,1756372240769,-727.82,0.00019452,2]
[381857345,1756372240779,-480.0,0.00019452,2]
[381857347,1756372240788,-480.0,0.00019452,2]
[381857349,1756372240798,-480.0,0.00019452,2]
[381857351,1756372240807,-480.0,0.00019452,2]
[381857353,1756372240817,-480.0,0.00019452,2]
[381857355,1756372240826,-480.0,0.00019452,2]
[381857357,1756372240835,-480.0,0.00019452,2]
[381857359,1756372240845,-480.0,0.00019452,2]
[381857361,1756372240855,-602.47,0.00019452,2]
[381857363,1756372240865,-1009.15,0.00019452,2]
[381857365,1756372240874,-631.9,0.00019452,2]
[381857367,1756372240883,-480.0,0.00019452,2]
[381857369,1756372240893,-480.0,0.00019452,2]
[381857371,1756372240902,-532.75,0.00019452,2]
[381857373,1756372240911,-480.0,0.00019452,2]
[381857375,1756372240920,-463.4248469,0.00019452,2]
[381857377,1756372240930,-480.0,0.00019452,2]
[381857379,1756372240939,-785.39,0.00019452,2]
[381857381,1756372240948,-480.0,0.00019452,2]
[381857383,1756372240958,-580.73,0.00019452,2]
[381857385,1756372240967,-480.0,0.00019452,2]
[381857387,1756372240976,-480.0,0.00019452,2]
[381857389,1756372240986,-480.0,0.00019452,2]
[381857391,1756372240996,-480.0,0.00019452,2]
[381857393,1756372241006,-785.17,0.00019452,2]
[381857395,1756372241016,-480.0,0.00019452,2]
[381857397,1756372241026,-516.9,0.00019452,2]
[381857399,1756372241035,-778.29,0.00019452,2]
[381857401,1756372241045,-480.0,0.00019452,2]
[381857403,1756372241056,-480.0,0.00019452,2]
[381857405,1756372241066,-1392.44,0.00019452,2]
[381857407,1756372241075,-480.0,0.00019452,2]
[381857409,1756372241085,-480.0,0.00019452,2]
[381857411,1756372241095,-203.73,0.00019452,2]
[381857413,1756372241105,-480.0,0.00019452,2]
[381857415,1756372241115,-480.0,0.00019452,2]
[381857417,1756372241124,-480.0,0.00019452,2]
[381857419,1756372241134,-215.96,0.00019452,2]
[381857421,1756372241144,-480.0,0.00019452,2]
[381857423,1756372241154,-887.02,0.00019452,2]
[381857425,1756372241163,-480.0,0.00019452,2]
[381857427,1756372241173,-217.83170636,0.00019452,2]
[381857429,1756372241183,-480.0,0.00019452,2]
[381857431,1756372241192,-480.0,0.00019452,2]
[381857433,1756372241202,-480.0,0.00019452,2]
[381857435,1756372241211,-480.0,0.00019452,2]
[381857437,1756372241220,-480.0,0.00019452,2]
[381857439,1756372241230,-480.0,0.00019452,2]
[381857441,1756372241240,-480.0,0.00019452,2]
[381857443,1756372241249,-480.0,0.00019452,2]
[381857445,1756372241259,-480.0,0.00019452,2]
[381857447,1756372241270,-480.0,0.00019452,2]
[381857449,1756372241280,-480.0,0.00019452,2]
[381857451,1756372241290,-501.66,0.00019452,2]
[381857453,1756372241299,-480.0,0.00019452,2]
[381857456,1756372241310,-480.0,0.00019452,2]
[381857458,1756372241319,-480.0,0.00019452,2]
[381857460,1756372241328,-528.4,0.00019452,2]
[381857462,1756372241338,-603.15,0.00019452,2]
[381857464,1756372241347,-547.14,0.00019452,2]
[381857466,1756372241357,-480.0,0.00019452,2]
[381857468,1756372241367,-480.0,0.00019452,2]
[381857470,1756372241377,-480.0,0.00019452,2]
[381857472,1756372241386,-480.0,0.00019452,2]
[381857474,1756372241396,-774.48,0.00019452,2]
[381857476,1756372241405,-480.0,0.00019452,2]
[381857478,1756372241415,-480.0,0.00019452,2]
[381857480,1756372241425,-480.0,0.00019452,2]
[381857482,1756372241435,-480.0,0.00019452,2]
[381857484,1756372241445,-480.0,0.00019452,2]
[381857486,1756372241455,-480.0,0.00019452,2]
[381857488,1756372241465,-480.0,0.00019452,2]
[381857490,1756372241475,-480.0,0.00019452,2]
[381857492,1756372241485,-480.0,0.00019452,2]
[381857495,1756372241495,-854.77,0.00019452,2]
[381857497,1756372241506,-507.93,0.00019452,2]
[381857499,1756372241516,-480.0,0.00019452,2]
[381857501,1756372241526,-718.86,0.00019452,2]
[381857503,1756372241536,-480.0,0.00019452,2]
[381857505,1756372241545,-506.82,0.00019452,2]
[381857507,1756372241555,-1053.42,0.00019452,2]
[381857509,1756372241565,-483.16339817,0.00019452,2]
[381857511,1756372241574,-480.0,0.00019452,2]
[381857513,1756372241584,-540.22,0.00019452,2]
[381857515,1756372241594,-1376.47,0.00019452,2]
[381857517,1756372241604,-1702.83,0.00019452,2]
[381857519,1756372241614,-979.38,0.00019452,2]
[381857521,1756372241623,-673.66,0.00019452,2]
[381857523,1756372241634,-480.0,0.00019452,2]
[381857525,1756372241644,-3056.97,0.00019452,2]
[381857528,1756372241654,-1664.95,0.00019452,2]
[381857530,1756372241664,-492.77,0.00019452,2]
[381857532,1756372241678,-480.0,0.00019452,2]
[381857534,1756372241687,-480.0,0.00019452,2]
[381857536,1756372241698,-480.0,0.00019452,2]
[381857538,1756372241708,-2394.63,0.00019452,2]
[381857540,1756372241717,-480.0,0.00019452,2]
[381857542,1756372241727,-480.0,0.00019452,2]
[381857544,1756372241737,-842.08,0.00019452,2]
[381857546,1756372241749,-480.0,0.00019452,2]
[381857548,1756372241758,-480.0,0.00019452,2]
[381857550,1756372241768,-480.0,0.00019452,2]
[381857552,1756372241778,-480.0,0.00019452,2]
[381857554,1756372241788,-480.0,0.00019452,2]
[381857556,1756372241798,-480.0,0.00019452,2]
[381857558,1756372241807,-437.22302118,0.00019452,2]
[381857583,1756372242037,-104.25697882,0.00019452,2]
[381857585,1756372242047,-480.0,0.00019452,2]
[381857587,1756372242058,-480.0,0.00019452,2]
[381857589,1756372242068,-494.59588126,0.00019452,2]
[381857591,1756372242078,-865.94,0.00019452,2]
[381857593,1756372242088,-480.0,0.00019452,2]
[381857595,1756372242098,-480.0,0.00019452,2]
[381857598,1756372242108,-1025.89,0.00019452,2]
[381857600,1756372242117,-440.22317859,0.00019452,2]
[381858546,1756372337507,737.525522,0.00013699,2]
[381858551,1756373015638,-282.87463941,0.0001821,2]
[381858552,1756373018146,-233.56673278,0.0001821,2]
[381858555,1756373198126,-164.69517072,0.00018877,2]
[381858556,1756373198146,-36.5399444,0.00018967,2]
[381858602,1756373431997,-250.0,0.00018768,2]
[381858604,1756373432007,-332.43961012,0.00018867,2]
[381858605,1756373432016,-54.72310771,0.00018967,2]
[381858606,1756373432028,-137.80161824,0.00018967,2]
[381858607,1756373432038,-160.0,0.00019053,2]
[381858608,1756373432047,-387.59186625,0.00019067,2]
[381858609,1756373432067,-704.25000015,0.00019067,2]
[381858610,1756373432079,-471.2482989,0.00019067,2]
[381858611,1756373432089,-57.45737286,0.00019067,2]
[381858624,1756373437938,-95.04594255,0.00019067,2]
[381858625,1756373437947,-665.0,0.00019077,2]
[381858627,1756373437957,-300.0,0.00019077,2]
[381858629,1756373437966,-355.97894738,0.00019078,2]
[381858631,1756373437977,-48611.31131633,0.00019078,2]
[381858633,1756373437987,-1000.0,0.00019166,2]
[381858635,1756373437996,-187.78006525,0.00019166,2]
[381858637,1756373438004,-1000.0,0.00019166,2]
[381858639,1756373438014,-500.0,0.00019166,2]
[381858641,1756373438023,-500.0,0.00019166,2]
[381858643,1756373438032,-500.0,0.00019166,2]
[381858645,1756373438041,-500.0,0.00019166,2]
[381858646,1756373438050,-500.0,0.00019166,2]
[381858648,1756373438059,-1000.0,0.00019166,2]
[381858650,1756373438069,-500.0,0.00019166,2]
[381858652,1756373438080,-1000.0,0.00019166,2]
[381858653,1756373438090,-1000.0,0.00019166,2]
[381858654,1756373438099,-1000.0,0.00019166,2]
[381858655,1756373438108,-1000.0,0.00019166,2]
[381858656,1756373438118,-1000.0,0.00019166,2]
[381858657,1756373438127,-1000.0,0.00019166,2]
[381858658,1756373438136,-1000.0,0.00019166,2]
[381858659,1756373438146,-1000.0,0.00019166,2]
[381858660,1756373438155,-1000.0,0.00019166,2]
[381858661,1756373438165,-386.1108823,0.00019166,2]
[381858662,1756373438175,-50000.0,0.00019167,2]
[381858663,1756373438184,-1035.96,0.00019168,3]
[381858664,1756373438193,-517.98,0.00019168,3]
[381858665,1756373438203,-258.99,0.00019168,3]
[381858666,1756373438212,-776.98,0.00019168,3]
[381858667,1756373438223,-500.0,0.00019168,2]
[381858668,1756373438232,-500.0,0.00019173,2]
[381858669,1756373438242,-500.0,0.00019173,2]
[381858670,1756373438251,-500.0,0.00019173,2]
[381858671,1756373438261,-351.0219958,0.00019173,2]
[381858672,1756373438271,-222.72368656,0.00019173,2]
[381858673,1756373438280,-500.0,0.00019173,2]
[381858674,1756373438295,-500.0,0.00019173,2]
[381858675,1756373438304,-500.0,0.00019173,2]
[381858676,1756373438314,-480.0,0.00019178,2]
[381858677,1756373438323,-480.0,0.00019178,2]
[381858678,1756373438334,-480.0,0.00019178,2]
[381858679,1756373438343,-480.0,0.00019178,2]
[381858680,1756373438352,-480.0,0.00019178,2]
[381858681,1756373438365,-480.0,0.00019178,2]
[381858682,1756373438375,-480.0,0.00019178,2]
[381858683,1756373438385,-480.0,0.00019178,2]
[381858684,1756373438394,-480.0,0.00019178,2]
[381858685,1756373438403,-480.0,0.00019178,2]
[381858686,1756373438412,-480.0,0.00019178,2]
[381858687,1756373438422,-480.0,0.00019178,2]
[381858688,1756373438431,-481.53684633,0.00019178,2]
[381858689,1756373438440,-480.0,0.00019178,2]
[381858690,1756373438449,-480.0,0.00019178,2]
[381858691,1756373438459,-480.0,0.00019178,2]
[381858692,1756373438468,-480.0,0.00019178,2]
[381858693,1756373438477,-481.65838293,0.00019178,2]
[381858694,1756373438488,-480.0,0.00019178,2]
[381858695,1756373438497,-480.0,0.00019178,2]
[381858696,1756373438507,-369.44564814,0.00019178,2]
[381858697,1756373438518,-480.0,0.00019178,2]
[381858698,1756373438528,-480.0,0.00019178,2]
[381858699,1756373438538,-480.0,0.00019178,2]
[381858700,1756373438547,-480.0,0.00019178,2]
[381858701,1756373438557,-480.0,0.00019178,2]
[381858702,1756373438567,-480.0,0.00019178,2]
[381858703,1756373438577,-480.0,0.00019178,2]
[381858704,1756373438586,-480.0,0.00019178,2]
[381858705,1756373438595,-480.0,0.00019178,2]
[381858706,1756373438604,-480.0,0.00019178,2]
[381858707,1756373438613,-480.0,0.00019178,2]
[381858708,1756373438622,-480.0,0.00019178,2]
[381858709,1756373438631,-480.0,0.00019178,2]
[381858710,1756373438641,-480.0,0.00019178,2]
[381858711,1756373438650,-481.28382421,0.00019178,2]
[381858712,1756373438660,-381.91875296,0.00019178,2]
[381858713,1756373438669,-484.69873127,0.00019178,2]
[381858714,1756373438679,-480.0,0.00019178,2]
[381858715,1756373438688,-480.0,0.00019178,2]
[381858716,1756373438697,-480.0,0.00019178,2]
[381858717,1756373438706,-480.0,0.00019178,2]
[381858718,1756373438715,-480.0,0.00019178,2]
[381858719,1756373438724,-480.0,0.00019178,2]
[381858720,1756373438733,-480.0,0.00019178,2]
[381858721,1756373438742,-480.0,0.00019178,2]
[381858722,1756373438752,-480.0,0.00019178,2]
[381858723,1756373438761,-480.0,0.00019178,2]
[381858724,1756373438771,-480.0,0.00019178,2]
[381858725,1756373438779,-480.0,0.00019178,2]
[381858726,1756373438789,-480.0,0.00019178,2]
[381858727,1756373438799,-480.0,0.00019178,2]
[381858728,1756373438808,-480.0,0.00019178,2]
[381858729,1756373438817,-482.43047213,0.00019178,2]
[381858730,1756373438827,-480.0,0.00019178,2]
[381858731,1756373438837,-480.0,0.00019178,2]
[381858732,1756373438846,-480.0,0.00019178,2]
[381858733,1756373438855,-480.0,0.00019178,2]
[381858734,1756373438864,-480.0,0.00019178,2]
[381858735,1756373438873,-480.0,0.00019178,2]
[381858736,1756373438883,-480.0,0.00019178,2]
[381858737,1756373438892,-361.80949767,0.00019178,2]
[381858738,1756373438901,-480.0,0.00019178,2]
[381858739,1756373438910,-480.0,0.00019178,2]
[381858740,1756373438919,-480.0,0.00019178,2]
[381858741,1756373438929,-480.0,0.00019178,2]
[381858742,1756373438938,-480.0,0.00019178,2]
[381858743,1756373438947,-480.0,0.00019178,2]
[381858744,1756373438957,-530.73,0.00019178,2]
[381858745,1756373438967,-480.0,0.00019178,2]
[381858746,1756373438976,-480.0,0.00019178,2]
[381858747,1756373438986,-480.0,0.00019178,2]
[381858748,1756373438995,-480.0,0.00019178,2]
[381858749,1756373439004,-480.0,0.00019178,2]
[381858750,1756373439013,-869.48,0.00019178,2]
[381858751,1756373439022,-480.0,0.00019178,2]
[381858752,1756373439031,-480.0,0.00019178,2]
[381858753,1756373439040,-480.0,0.00019178,2]
[381858754,1756373439049,-781.34,0.00019178,2]
[381858755,1756373439058,-579.09,0.00019178,2]
[381858756,1756373439067,-480.0,0.00019178,2]
[381858757,1756373439076,-480.0,0.00019178,2]
[381858758,1756373439085,-480.0,0.00019178,2]
[381858759,1756373439095,-480.0,0.00019178,2]
[381858760,1756373439104,-480.0,0.00019178,2]
[381858761,1756373439113,-480.0,0.00019178,2]
[381858762,1756373439123,-480.0,0.00019178,2]
[381858763,1756373439136,-480.0,0.00019178,2]
[381858764,1756373439146,-480.0,0.00019178,2]
[381858765,1756373439156,-480.0,0.00019178,2]
[381858766,1756373439167,-480.0,0.00019178,2]
[381858767,1756373439176,-501.28,0.00019178,2]
[381858768,1756373439185,-480.0,0.00019178,2]
[381858769,1756373439195,-480.0,0.00019178,2]
[381858770,1756373439204,-480.0,0.00019178,2]
[381858771,1756373439213,-480.0,0.00019178,2]
[381858772,1756373439222,-480.0,0.00019178,2]
[381858773,1756373439231,-480.0,0.00019178,2]
[381858774,1756373439241,-725.68,0.00019178,2]
[381858775,1756373439250,-480.0,0.00019178,2]
[381858776,1756373439260,-480.0,0.00019178,2]
[381858777,1756373439269,-480.0,0.00019178,2]
[381858778,1756373439278,-480.0,0.00019178,2]
[381858779,1756373439291,-480.0,0.00019178,2]
[381858780,1756373439300,-487.67,0.00019178,2]
[381858781,1756373439310,-480.0,0.00019178,2]
[381858782,1756373439319,-1142.52,0.00019178,2]
[381858783,1756373439330,-423.40303104,0.00019178,2]
[381858784,1756373439340,-480.0,0.00019178,2]
[381858785,1756373439349,-482.09569288,0.00019178,2]
[381858786,1756373439358,-635.98,0.00019178,2]
[381858787,1756373439369,-480.0,0.00019178,2]
[381858788,1756373439378,-480.0,0.00019178,2]
[381858789,1756373439387,-480.0,0.00019178,2]
[381858790,1756373439396,-480.0,0.00019178,2]
[381858791,1756373439405,-480.0,0.00019178,2]
[381858792,1756373439415,-485.35,0.00019178,2]
[381858793,1756373439423,-480.0,0.00019178,2]
[381858794,1756373439433,-480.0,0.00019178,2]
[381858795,1756373439442,-480.0,0.00019178,2]
[381858796,1756373439451,-480.0,0.00019178,2]
[381858797,1756373439460,-600.93,0.00019178,2]
[381858798,1756373439470,-480.0,0.00019178,2]
[381858799,1756373439480,-480.0,0.00019178,2]
[381858800,1756373439488,-480.0,0.00019178,2]
[381858801,1756373439498,-480.0,0.00019178,2]
[381858802,1756373439507,-480.0,0.00019178,2]
[381858803,1756373439517,-492.59,0.00019178,2]
[381858804,1756373439525,-480.0,0.00019178,2]
[381858805,1756373439535,-616.68303998,0.00019178,2]
[381858807,1756373439545,-480.0,0.00019178,2]
[381858810,1756373439554,-663.88,0.00019178,2]
[381858812,1756373439563,-480.0,0.00019178,2]
[381858813,1756373439572,-480.0,0.00019178,2]
[381858814,1756373439581,-480.0,0.00019178,2]
[381858815,1756373439590,-494.3,0.00019178,2]
[381858816,1756373439599,-480.0,0.00019178,2]
[381858817,1756373439608,-542.7,0.00019178,2]
[381858818,1756373439617,-579.65,0.00019178,2]
[381858819,1756373439626,-480.0,0.00019178,2]
[381858820,1756373439635,-505.12,0.00019178,2]
[381858821,1756373439644,-506.2,0.00019178,2]
[381858822,1756373439652,-480.0,0.00019178,2]
[381858823,1756373439661,-508.0,0.00019178,2]
[381858824,1756373439671,-480.0,0.00019178,2]
[381858825,1756373439680,-480.0,0.00019178,2]
[381858826,1756373439691,-480.0,0.00019178,2]
[381858827,1756373439699,-1072.92,0.00019178,2]
[381858828,1756373439709,-480.0,0.00019178,2]
[381858830,1756373439718,-480.0,0.00019178,2]
[381858832,1756373439727,-480.0,0.00019178,2]
[381858833,1756373439736,-480.0,0.00019178,2]
[381858834,1756373439745,-695.3,0.00019178,2]
[381858835,1756373439754,-816.58,0.00019178,2]
[381858836,1756373439763,-480.0,0.00019178,2]
[381858837,1756373439772,-480.0,0.00019178,2]
[381858838,1756373439782,-400.0,0.00019178,2]
[381858839,1756373439792,-476.6438276,0.00019178,2]
[381858840,1756373439801,-480.0,0.00019178,2]
[381858841,1756373439810,-480.0,0.00019178,2]
[381858842,1756373439819,-480.0,0.00019178,2]
[381858844,1756373439828,-790.66,0.00019178,2]
[381858846,1756373439837,-480.0,0.00019178,2]
[381858847,1756373439847,-615.08,0.00019178,2]
[381858848,1756373439857,-480.0,0.00019178,2]
[381858849,1756373439866,-498.44,0.00019178,2]
[381858850,1756373439876,-480.0,0.00019178,2]
[381858851,1756373439885,-480.0,0.00019178,2]
[381858852,1756373439895,-480.0,0.00019178,2]
[381858853,1756373439904,-480.0,0.00019178,2]
[381858854,1756373439913,-480.0,0.00019178,2]
[381858855,1756373439922,-480.0,0.00019178,2]
[381858856,1756373439931,-1409.26,0.00019178,2]
[381858857,1756373439940,-640.82,0.00019178,2]
[381858858,1756373439949,-480.0,0.00019178,2]
[381858859,1756373439958,-770.49,0.00019178,2]
[381858860,1756373439968,-480.0,0.00019178,2]
[381858861,1756373439977,-186.36644788,0.00019178,2]
[381858862,1756373439986,-480.0,0.00019178,2]
[381858863,1756373439996,-480.0,0.00019178,2]
[381858864,1756373440005,-480.0,0.00019178,2]
[381858865,1756373440014,-480.0,0.00019178,2]
[381858866,1756373440023,-480.0,0.00019178,2]
[381858867,1756373440032,-480.0,0.00019178,2]
[381858868,1756373440041,-480.0,0.00019178,2]
[381858869,1756373440050,-480.0,0.00019178,2]
[381858870,1756373440059,-480.0,0.00019178,2]
[381858871,1756373440068,-480.0,0.00019178,2]
[381858872,1756373440077,-480.0,0.00019178,2]
[381858873,1756373440087,-480.0,0.00019178,2]
[381858874,1756373440096,-480.0,0.00019178,2]
[381858875,1756373440105,-480.0,0.00019178,2]
[381858876,1756373440114,-480.0,0.00019178,2]
[381858877,1756373440123,-480.0,0.00019178,2]
[381858878,1756373440132,-480.0,0.00019178,2]
[381858879,1756373440141,-480.0,0.00019178,2]
[381858880,1756373440151,-536.00711133,0.00019178,2]
[381858881,1756373440160,-480.0,0.00019178,2]
[381858882,1756373440170,-947.46,0.00019178,2]
[381858883,1756373440179,-480.0,0.00019178,2]
[381858884,1756373440189,-502.69,0.00019178,2]
[381858885,1756373440198,-480.0,0.00019178,2]
[381858886,1756373440207,-480.0,0.00019178,2]
[381858887,1756373440216,-480.0,0.00019178,2]
[381858888,1756373440226,-480.0,0.00019178,2]
[381858889,1756373440235,-480.0,0.00019178,2]
[381858890,1756373440245,-480.0,0.00019178,2]
[381858891,1756373440254,-480.0,0.00019178,2]
[381858892,1756373440263,-480.0,0.00019178,2]
[381858893,1756373440272,-480.0,0.00019178,2]
[381858894,1756373440282,-516.53,0.00019178,2]
[381858895,1756373440295,-480.0,0.00019178,2]
[381858896,1756373440304,-483.57,0.00019178,2]
[381858897,1756373440314,-480.0,0.00019178,2]
[381858898,1756373440323,-480.0,0.00019178,2]
[381858899,1756373440333,-480.0,0.00019178,2]
[381858900,1756373440343,-480.0,0.00019178,2]
[381858901,1756373440352,-633.29,0.00019178,2]
[381858902,1756373440365,-480.0,0.00019178,2]
[381858903,1756373440375,-279.25517091,0.00019178,2]
[381858904,1756373440385,-547.6,0.00019178,2]
[381858905,1756373440394,-509.53,0.00019178,2]
[381858906,1756373440404,-627.33,0.00019178,2]
[381858907,1756373440414,-480.0,0.00019178,2]
[381858908,1756373440424,-480.0,0.00019178,2]
[381858909,1756373440433,-480.0,0.00019178,2]
[381858910,1756373440442,-480.0,0.00019178,2]
[381858911,1756373440452,-480.0,0.00019178,2]
[381858912,1756373440463,-480.0,0.00019178,2]
[381858913,1756373440473,-480.0,0.00019178,2]
[381858914,1756373440482,-480.0,0.00019178,2]
[381858915,1756373440492,-500.0,0.00019178,2]
[381858916,1756373440502,-480.0,0.00019178,2]
[381858917,1756373440511,-480.0,0.00019178,2]
[381858918,1756373440520,-480.0,0.00019178,2]
[381858919,1756373440530,-858.1,0.00019178,2]
[381858920,1756373440540,-611.3,0.00019178,2]
[381858921,1756373440550,-480.0,0.00019178,2]
[381858922,1756373440560,-480.0,0.00019178,2]
[381858923,1756373440569,-480.0,0.00019178,2]
[381858924,1756373440578,-480.0,0.00019178,2]
[381858925,1756373440588,-693.19,0.00019178,2]
[381858926,1756373440597,-480.0,0.00019178,2]
[381858927,1756373440607,-480.0,0.00019178,2]
[381858928,1756373440616,-480.0,0.00019178,2]
[381858929,1756373440626,-480.0,0.00019178,2]
[381858930,1756373440635,-480.0,0.00019178,2]
[381858931,1756373440645,-480.0,0.00019178,2]
[381858932,1756373440654,-1059.19,0.00019178,2]
[381858933,1756373440664,-1216.0,0.00019178,2]
[381858934,1756373440673,-480.0,0.00019178,2]
[381858935,1756373440682,-480.0,0.00019178,2]
[381858936,1756373440692,-480.0,0.00019178,2]
[381858937,1756373440701,-1724.7,0.00019178,2]
[381858938,1756373440711,-151.0,0.00019178,2]
[381858939,1756373440720,-944.4,0.00019178,2]
[381858940,1756373440729,-480.0,0.00019178,2]
[381858941,1756373440739,-151.0,0.00019178,2]
[381858942,1756373440749,-1327.31,0.00019178,2]
[381858943,1756373440758,-151.0,0.00019178,2]
[381858944,1756373440767,-151.0,0.00019178,2]
[381858945,1756373440777,-151.0,0.00019178,2]
[381858946,1756373440787,-414.16824246,0.00019178,2]
[381858947,1756373440867,-85.83175754,0.00019178,2]
[381858948,1756373440878,-631.85,0.00019178,2]
[381858949,1756373440887,-480.0,0.00019178,2]
[381858950,1756373440897,-151.43634913,0.00019178,2]
[381858951,1756373440906,-468.87,0.00019178,2]
[381858952,1756373440916,-151.0,0.00019178,2]
[381858953,1756373440925,-480.0,0.00019178,2]
[381858954,1756373440935,-151.0,0.00019178,2]
[381858955,1756373440945,-480.0,0.00019178,2]